fUSD/lending_fUSD_20240819
["ID","MTS","AMOUNT","RATE_DAILY","PERIOD"]
[335303608,1724092231608,-421.74891164,0.00010026,2]
[335303609,1724092231617,-94.4602403,0.00010111,2]
[335303610,1724092231629,-405.5297597,0.00010111,2]
[335303611,1724092231639,-715.72534741,0.00010189,2]
[335303612,1724092231651,-708.62465259,0.00010189,2]
[335303613,1724092231660,-15334.3324,0.000102,2]
[335303614,1724092231670,-500.0,0.00010264,2]
[335303615,1724092231679,-500.0,0.00010264,2]
[335303616,1724092231687,-2886.84,0.00010291,2]
[335303617,1724092231696,-150.0,0.00010299,2]
[335303618,1724092231705,-3588.84568747,0.000103,5]
[335303619,1724092231716,-1323.01385731,0.000103,5]
[335303620,1724092231726,-650.14882909,0.000103,5]
[335303621,1724092231737,-545.99162613,0.000103,5]
[335303622,1724092231746,-790.56,0.000103,2]
[335303623,1724092231756,-790.56,0.000103,2]
[335303624,1724092231765,-790.56,0.000103,2]
[335303625,1724092231774,-355.75,0.000103,2]
[335303626,1724092231783,-790.56,0.000103,2]
[335303627,1724092231792,-790.56,0.000103,2]
[335303628,1724092231801,-790.56,0.000103,2]
[335303629,1724092231810,-790.56,0.000103,2]
[335303630,1724092231820,-197.4,0.00010378,2]
[335303631,1724092231829,-150.0,0.00010378,2]
[335303633,1724092231839,-426.72,0.00010378,2]
[335303635,1724092231849,-150.0,0.00010378,2]
[335303637,1724092231862,-150.0,0.00010378,2]
[335303639,1724092231872,-356.8,0.00010378,2]
[335303640,1724092231882,-531.39,0.00010378,2]
[335303641,1724092231891,-150.0,0.00010378,2]
[335303642,1724092231900,-531.39,0.00010378,2]
[335303643,1724092231910,-150.0,0.00010378,2]
[335303644,1724092231924,-150.0,0.00010378,2]
[335303645,1724092231933,-150.0,0.00010378,2]
[335303646,1724092231943,-356.8,0.00010378,2]
[335303647,1724092231952,-150.0,0.00010378,2]
[335303648,1724092231962,-150.0,0.00010378,2]
[335303649,1724092231972,-426.72,0.00010378,2]
[335303650,1724092231981,-426.72,0.00010378,2]
[335303651,1724092231990,-531.39,0.00010378,2]
[335303652,1724092232001,-150.0,0.00010378,2]
[335303653,1724092232010,-150.0,0.00010378,2]
[335303654,1724092232020,-150.0,0.00010378,2]
[335303655,1724092232029,-150.0,0.00010378,2]
[335303656,1724092232039,-426.72,0.00010378,2]
[335303657,1724092232048,-531.39,0.00010378,2]
[335303658,1724092232057,-150.0,0.00010378,2]
[335303659,1724092232066,-150.0,0.00010378,2]
[335303660,1724092232076,-150.0,0.00010378,2]
[335303661,1724092232085,-150.0,0.00010378,2]
[335303662,1724092232094,-535.28,0.00010378,2]
[335303663,1724092232104,-150.0,0.00010378,2]
[335303664,1724092232113,-426.72,0.00010378,2]
[335303665,1724092232122,-150.0,0.00010378,2]
[335303666,1724092232131,-426.72,0.00010378,2]
[335303667,1724092232140,-150.0,0.00010378,2]
[335303668,1724092232149,-150.0,0.00010378,2]
[335303669,1724092232158,-426.72,0.00010378,2]
[335303670,1724092232168,-426.72,0.000104,2]
[335303671,1724092232178,-150.0,0.000104,2]
[335303672,1724092232187,-790.56,0.000104,2]
[335303673,1724092232196,-150.0,0.000104,2]
[335303674,1724092232206,-517.12,0.00010465,2]
[335303675,1724092232215,-3781.4284,0.000106,2]
[335303676,1724092232224,-2000.0,0.000107,2]
[335303677,1724092232233,-6715.6828,0.000107,2]
[335303678,1724092232243,-72616.2813,0.000107,2]
[335303679,1724092232253,-152.0,0.00010711,3]
[335303680,1724092232262,-5186.50092099,0.000108,2]
[335303681,1724092232272,-1528.5043,0.000108,2]
[335303682,1724092232281,-4975.61,0.000108,2]
[335303683,1724092232290,-376.09503936,0.00010809,2]
[335303684,1724092232300,-15482.07459557,0.0001088,2]
[335303685,1724092232310,-150.0,0.0001089,2]
[335303686,1724092232319,-500.0,0.00010898,2]
[335303687,1724092232329,-18697.51437522,0.00010899,2]
[335303688,1724092232338,-18697.51437516,0.00010899,2]
[335303689,1724092232348,-18697.51437516,0.00010899,2]
[335303690,1724092232360,-18697.51437516,0.00010899,2]
[335303691,1724092232369,-18697.51437516,0.00010899,2]
[335303692,1724092232379,-18697.51437516,0.00010899,2]
[335303693,1724092232388,-18697.51437516,0.00010899,2]
[335303694,1724092232397,-18697.51437516,0.00010899,2]
[335303695,1724092232406,-2672.93267765,0.00010899,2]
[335303696,1724092232418,-667.36237526,0.00010899,2]
[335303697,1724092232430,-1094.75820081,0.00010899,2]
[335303698,1724092232442,-508.47198714,0.00010899,2]
[335303699,1724092232454,-7000.17256487,0.00010899,2]
[335303700,1724092232469,-418.90217464,0.00010899,2]
[335303701,1724092232481,-754.50153,0.00010899,2]
[335303705,1724092237550,-1698.02186945,0.00010899,2]
[335303710,1724092237587,-279.36,0.00010899,2]
[335303712,1724092237598,-3603.03099534,0.00010899,2]
[335303714,1724092237610,-309.42433542,0.00010899,2]
[335303716,1724092237620,-1111.124,0.000109,2]
[335303718,1724092237630,-1000.0,0.000109,2]
[335303720,1724092237649,-12047.83789325,0.000109,2]
[335303778,1724092238395,-1504.2,0.000109,2]
[335303781,1724092238406,-1364.83123837,0.000109,2]
[335303783,1724092238417,-475.14527595,0.000109,2]
[335303785,1724092238432,-544.37084928,0.000109,2]
[335303787,1724092238444,-12927.10381758,0.000109,2]
[335303877,1724092239353,2661.6148,9.814e-05,2]
[335303917,1724092239733,-837.74750378,0.000109,2]
[335303919,1724092239744,-2481.97911351,0.000109,2]
[335303921,1724092239756,-43288.42910828,0.000109,2]
[335303923,1724092239766,-168.91896574,0.000109,2]
[335303925,1724092239776,-18697.51437516,0.000109,2]
[335303927,1724092239785,-189.55387216,0.000109,2]
[335303929,1724092239795,-805.65955879,0.000109,2]
[335303931,1724092239804,-805.65955873,0.000109,2]
[335303933,1724092239814,-805.65955873,0.000109,2]
[335303935,1724092239824,-805.65955873,0.000109,2]
[335303937,1724092239834,-805.65955873,0.000109,2]
[335303939,1724092239844,-805.65955873,0.000109,2]
[335303941,1724092239853,-152.0,0.00010909,4]
[335303943,1724092239868,-1289.30263,0.0001094,2]
[335303945,1724092239878,-343.84022697,0.00010944,2]
[335303947,1724092239890,-207.15977303,0.00010944,2]
[335303949,1724092239900,-1896.0,0.00010944,2]
[335303951,1724092239910,-150.0,0.00010944,2]
[335303953,1724092239921,-1171.0,0.00010944,2]
[335303955,1724092239934,-3318.0,0.00010944,2]
[335303957,1724092239943,-247.0,0.00010944,2]
[335303959,1724092239953,-3726.0,0.00010944,2]
[335303961,1724092239962,-1543.0,0.00010944,2]
[335303963,1724092239973,-651.97502919,0.00010944,2]
[335303966,1724092239988,-4285.81638443,0.00010944,2]
[335303968,1724092240000,-906.20858638,0.00010944,2]
[335303970,1724092240009,-1923.0,0.00010944,2]
[335303972,1724092240019,-622.0,0.00010944,2]
[335303974,1724092240028,-289.0,0.00010944,2]
[335303976,1724092240038,-1257.0,0.00010944,2]
[335303978,1724092240047,-1205.0,0.00010944,2]
[335303979,1724092240057,-155.0,0.00010949,2]
[335303981,1724092240066,-242.46,0.00010959,2]
[335303983,1724092240075,-1500.0,0.00010959,2]
[335303985,1724092240085,-150.0,0.00010959,2]
[335303987,1724092240094,-2000.0,0.00010959,2]
[335303989,1724092240104,-250.0,0.00010959,2]
[335303991,1724092240117,-200.0,0.00010973,2]
[335303993,1724092240126,-200.0,0.00010973,2]
[335303995,1724092240135,-8457.48144402,0.0001099,3]
[335303997,1724092240147,-15353.46151256,0.0001099,3]
[335304000,1724092240163,-1031.00172718,0.0001099,3]
[335304002,1724092240174,-587.72819476,0.0001099,3]
[335304004,1724092240185,-12629.22269139,0.0001099,3]
[335304006,1724092240195,-500.0,0.00010996,2]
[335304008,1724092240205,-6199.19699349,0.00010997,2]
[335304010,1724092240214,-29475.75157424,0.00010997,2]
[335304013,1724092240230,-1818.9,0.00010997,2]
[335304115,1724092241243,-1086.34670665,0.00010997,2]
[335304117,1724092241254,-535.85788251,0.00010997,2]
[335304120,1724092241266,-1534.61932229,0.00010997,2]
[335304122,1724092241285,-320.10297877,0.00010997,2]
[335304125,1724092241296,-14000.0,0.00010997,2]
[335304131,1724092241364,-821.99748346,0.00010997,2]
[335304133,1724092241374,-530.08458478,0.00010998,2]
[335304135,1724092241385,-696.7690233,0.00010998,2]
[335304137,1724092241396,-325.581,0.00010998,2]
[335304139,1724092241407,-3449.94635913,0.00010998,2]
[335304142,1724092241423,-3817.53502289,0.00010998,2]
[335304144,1724092241432,-4357.6494964,0.00010998,2]
[335304146,1724092241441,-868.9818616,0.00010998,2]
[335304148,1724092241453,-2837.74696614,0.00010998,2]
[335304150,1724092241464,-27089.17785513,0.00010998,2]
[335304152,1724092241476,-1617.592005,0.00010998,2]
[335304154,1724092241487,-1363.68834929,0.00010998,2]
[335304156,1724092241499,-2023.404,0.00010998,2]
[335304158,1724092241510,-359.58943198,0.00010998,2]
[335304160,1724092241521,-338.0226125,0.00010998,2]
[335304248,1724092242567,-532.35328105,0.00010998,2]
[335304250,1724092242579,-361.01292754,0.00010998,2]
[335304253,1724092242601,-1469.59370028,0.00010998,2]
[335304257,1724092242634,-330.5,0.00010998,2]
[335304259,1724092242645,-5486.26623947,0.00010998,2]
[335304331,1724092243327,-2109.7800008,0.00010998,2]
[335304333,1724092243338,-1121.87702375,0.00010998,2]
[335304335,1724092243349,-1058.55765,0.00010998,2]
[335304337,1724092243361,-1325.20799028,0.00010998,2]
[335304339,1724092243371,-20159.00107969,0.00010998,2]
[335304341,1724092243381,-463.43909847,0.00010999,2]
[335304343,1724092243390,-500.0,0.00010999,2]
[335304345,1724092243399,-500.0,0.00010999,2]
[335304347,1724092243409,-500.0,0.00010999,2]
[335304349,1724092243419,-500.0,0.00010999,2]
[335304351,1724092243429,-500.0,0.00010999,2]
[335304353,1724092243438,-500.0,0.00010999,2]
[335304355,1724092243448,-500.0,0.00010999,2]
[335304357,1724092243457,-500.0,0.00010999,2]
[335304359,1724092243467,-500.0,0.00010999,2]
[335304361,1724092243476,-500.0,0.00010999,2]
[335304363,1724092243486,-500.0,0.00010999,2]
[335304365,1724092243495,-500.0,0.00010999,2]
[335304367,1724092243504,-500.0,0.00010999,2]
[335304369,1724092243513,-500.0,0.00010999,2]
[335304371,1724092243522,-500.0,0.00010999,2]
[335304373,1724092243531,-211.76,0.00010999,2]
[335304375,1724092243543,-502.0,0.00011,2]
[335304377,1724092243555,-82095.29982187,0.00011,2]
[335304596,1724092245660,-426.72,0.000107,2]
[335304599,1724092245673,-150.0,0.000107,2]
[335304601,1724092245684,-805.65955873,0.000109,2]
[335304603,1724092245695,-936.04323265,0.00010944,2]
[335304605,1724092245709,-736.95676735,0.00010944,2]
[335304608,1724092245721,-831.34499762,0.00011,2]
[335304610,1724092245734,-6154.01807628,0.00011,2]
[335304612,1724092245748,-5177.5175671,0.00011,2]
[335304615,1724092245761,-959.66047797,0.00011,2]
[335304617,1724092245773,-2015.57078776,0.00011,2]
[335304620,1724092245792,-3589.98717869,0.00011,2]
[335304622,1724092245804,-17714.41253113,0.00011,2]
[335304625,1724092245817,-422.24066894,0.00011,2]
[335304627,1724092245831,-582.27653367,0.00011,2]
[335304629,1724092245845,-811.5246979,0.00011,2]
[335304632,1724092245858,-1278.44042038,0.00011,2]
[335304634,1724092245879,-8849.56618415,0.00011,2]
[335304636,1724092245891,-776.31930374,0.00011,2]
[335304639,1724092245911,-10544.62938039,0.00011,2]
[335304641,1724092245926,-924.64607863,0.00011,2]
[335304644,1724092245940,-765.67486631,0.00011,2]
[335304646,1724092245952,-324.95834368,0.00011,2]
[335304648,1724092245965,-22170.70178956,0.00011,2]
[335304650,1724092245977,-470.22347517,0.00011,2]
[335304653,1724092245990,-2152.65565936,0.00011,2]
[335304655,1724092246003,-8571.89705668,0.00011,2]
[335304657,1724092246015,-379.89623438,0.00011,2]
[335305064,1724092338705,500.0,9.168e-05,2]
[335305065,1724092338788,500.0,8.22e-05,2]
[335305066,1724092397387,200.0,9.555e-05,2]
[335305067,1724092650336,215.47,9.88e-05,2]
[335305068,1724092797665,614.25,8.219e-05,2]
[335305069,1724092856927,756.42,9.863e-05,2]
[335305070,1724092863109,165.49,9.863e-05,2]
[335305072,1724092875076,483.95,9.885e-05,2]
[335305080,1724092993396,446.11,9.873e-05,2]
[335305081,1724092997134,500.0,0.00016,60]
[335305085,1724093067975,3393.94,9.85e-05,2]
[335305086,1724093069529,500.0,9.873e-05,2]
[335305087,1724093069946,500.0,9.873e-05,2]
[335305088,1724093070290,500.0,9.873e-05,2]
[335305089,1724093070659,500.0,9.873e-05,2]
[335305090,1724093071562,694.0,9.873e-05,2]
[335305091,1724093076429,250.0,9.859e-05,2]
[335305092,1724093090816,23900.0,9.876e-05,2]
[335305093,1724093111168,347.67,9.892e-05,2]
[335305094,1724093138734,171.79,9.858e-05,2]
[335305095,1724093157173,521.06,9.858e-05,2]
[335305096,1724093192291,218.49,9.857e-05,2]
[335305098,1724093286919,279.35,9.867e-05,2]
[335305099,1724093308019,615.11,8.219e-05,2]
[335305100,1724093314824,10000.0,9.852e-05,2]
[335305101,1724093329670,1000.0,9.865e-05,2]
[335305102,1724093365074,829.00575266,9.867e-05,2]
[335305107,1724093395722,581.33,9.844e-05,2]
[335305122,1724093431770,-2525.29,9.93e-05,2]
[335305123,1724093431779,-219.81,0.0001,2]
[335305124,1724093431788,-1050.0,0.0001,2]
[335305125,1724093431797,-477.08654469,0.00010009,2]
[335305126,1724093431807,-166.01174225,0.00010009,2]
[335305127,1724093431817,-150.0,0.00010219,2]
[335305129,1724093431826,-150.0,0.00010252,2]
[335305131,1724093431835,-300.0,0.00010252,2]
[335305133,1724093431845,-184.16,0.00010253,2]
[335305135,1724093431854,-524.1776808,0.00010253,2]
[335305137,1724093431876,-353.078016,0.00010253,2]
[335305139,1724093431887,-2195.73008022,0.00010253,2]
[335305141,1724093431898,-32136.55422298,0.00010253,2]
[335305143,1724093431907,-500.0,0.00010264,2]
[335305145,1724093431916,-500.0,0.00010264,2]
[335305147,1724093431926,-10000.0,0.000104,2]
[335305149,1724093431935,-615.11,0.00010469,2]
[335305150,1724093431944,-10952.02,0.00010469,2]
[335305151,1724093431953,-426.72,0.000105,2]
[335305152,1724093431962,-2385.52394854,0.00010566,2]
[335305153,1724093431971,-180.528769,0.00010622,2]
[335305154,1724093431980,-2135.32,0.00010699,2]
[335305155,1724093431989,-339.2904,0.00010699,2]
[335305156,1724093431998,-388.79,0.00010699,2]
[335305157,1724093432008,-7238.2415,0.00010699,2]
[335305158,1724093432017,-415.05,0.000107,2]
[335305159,1724093432026,-426.72,0.000107,2]
[335305160,1724093432036,-150.0,0.000107,2]
[335305162,1724093432045,-150.0,0.000107,2]
[335305164,1724093432054,-426.72,0.000107,2]
[335305166,1724093432065,-150.0,0.000107,2]
[335305168,1724093432074,-150.0,0.000107,2]
[335305170,1724093432083,-150.0,0.000107,2]
[335305172,1724093432092,-426.72,0.000107,2]
[335305174,1724093432101,-426.72,0.000107,2]
[335305176,1724093432114,-322.56323158,0.000107,2]
[335305178,1724093432126,-104.15676842,0.000107,2]
[335305180,1724093432135,-426.72,0.000107,2]
[335305182,1724093432144,-394.20047215,0.00010798,2]
[335305186,1724093432165,-228.92775969,0.00010798,2]
[335305187,1724093432174,-500.0,0.00010798,2]
[335305189,1724093432183,-500.0,0.00010798,2]
[335305191,1724093432192,-158.60668119,0.00010799,2]
[335305218,1724093437833,-3414.13763271,0.000104,2]
[335305219,1724093437898,-2575.55880004,0.000104,2]
[335305220,1724093437966,-4010.30356725,0.000104,2]
[335305221,1724093437975,-1105.09643279,0.00010799,2]
[335305368,1724093440024,-261.163918,0.000104,2]
[335305369,1724093440529,-3067.44764675,0.000104,2]
[335305370,1724093440559,-961.16902807,0.000104,2]
[335305371,1724093440568,-25680.00434796,0.00010799,2]
[335305372,1724093440605,-3079.4616,0.00010799,2]
[335305373,1724093440619,-1425.96140994,0.00010799,2]
[335305374,1724093440631,-887.023158,0.00010799,2]
[335305375,1724093440644,-24912.89410395,0.00010799,2]
[335305379,1724093442892,-1067.81353758,0.00010799,2]
[335305380,1724093442903,-455.24917089,0.00010799,2]
[335305381,1724093442945,-6272.47793869,0.00010799,2]
[335305408,1724093443562,-2467.1499995,0.00010799,2]
[335305409,1724093443572,-632.93440001,0.00010799,2]
[335305410,1724093443584,-586.0,0.00010799,2]
[335305411,1724093443599,-367.58673258,0.00010799,2]
[335305412,1724093443621,-500.0,0.00010798,2]
[335305413,1724093443630,-5090.10966965,0.00010799,2]
[335305420,1724093445853,-426.72,0.000105,2]
[335305421,1724093445864,-762.30918722,0.00010799,2]
[335305422,1724093445874,-3026.33434644,0.00010799,2]
[335305423,1724093445885,-904.64662748,0.00010799,2]
[335305424,1724093445896,-300.025825,0.00010799,2]
[335305425,1724093445907,-102648.56223113,0.00010799,2]
[335305426,1724093445917,-150.0,0.000108,2]
[335305427,1724093445926,-150.0,0.000108,2]
[335305428,1724093445935,-426.72,0.000108,2]
[335305429,1724093445945,-237.5,0.0001084,2]
[335305430,1724093445954,-237.5,0.00010843,2]
[335305431,1724093445963,-237.5,0.00010852,2]
[335305432,1724093445973,-237.5,0.00010853,2]
[335305433,1724093445982,-237.5,0.00010862,2]
[335305434,1724093445993,-237.5,0.00010874,2]
[335305435,1724093446003,-237.5,0.00010877,2]
[335305436,1724093446012,-499.99,0.00010877,2]
[335305437,1724093446022,-150.99,0.00010877,2]
[335305438,1724093446031,-299.99,0.00010877,2]
[335305439,1724093446042,-237.5,0.00010879,2]
[335305440,1724093446052,-279.85,0.00010879,2]
[335305441,1724093446061,-155.0,0.00010888,2]
[335305442,1724093446070,-1074.41886,0.0001089,2]
[335305443,1724093446079,-4582.0363,0.00010897,2]
[335305444,1724093446088,-160.24156953,0.00010899,2]
[335305445,1724093446098,-160.24156953,0.00010899,2]
[335305446,1724093446107,-160.24156953,0.00010899,2]
[335305447,1724093446118,-160.24156953,0.00010899,2]
[335305448,1724093446127,-160.24156953,0.00010899,2]
[335305449,1724093446136,-160.24156953,0.00010899,2]
[335305450,1724093446146,-160.24156953,0.00010899,2]
[335305451,1724093446155,-160.24156953,0.00010899,2]
[335305452,1724093446164,-309.34344666,0.00010899,2]
[335305453,1724093446173,-160.24156953,0.000109,2]
[335305454,1724093446183,-171.44570036,0.000109,2]
[335305455,1724093446192,-873.0849666,0.000109,2]
[335305456,1724093446201,-152.67384192,0.000109,2]
[335305457,1724093446210,-1543.0,0.00010954,2]
[335305458,1724093446219,-622.0,0.00010954,2]
[335305459,1724093446228,-1257.0,0.00010954,2]
[335305460,1724093446237,-1923.0,0.00010954,2]
[335305461,1724093446246,-446.0,0.00010954,2]
[335305462,1724093446255,-556.0,0.00010954,2]
[335305463,1724093446264,-810.0,0.00010954,2]
[335305464,1724093446273,-150.0,0.00010954,2]
[335305465,1724093446282,-150.0,0.00010954,2]
[335305466,1724093446292,-551.0,0.00010954,2]
[335305467,1724093446301,-1896.0,0.00010954,2]
[335305468,1724093446311,-1171.0,0.00010954,2]
[335305469,1724093446319,-247.0,0.00010954,2]
[335305470,1724093446330,-3214.0,0.00010954,2]
[335305471,1724093446340,-250.0,0.00010954,2]
[335305472,1724093446349,-266.76,0.00010954,2]
[335305473,1724093446358,-216.0,0.00010954,2]
[335305474,1724093446368,-216.0,0.00010954,2]
[335305475,1724093446379,-1205.0,0.00010954,2]
[335305476,1724093446388,-21773.0,0.00010954,2]
[335305477,1724093446397,-200.0,0.00010954,2]
[335305478,1724093446408,-163.0,0.00010954,2]
[335305479,1724093446417,-209.076,0.00010954,2]
[335305480,1724093446426,-163.974,0.00010954,2]
[335305481,1724093446435,-150.07,0.00010954,2]
[335305482,1724093446445,-3726.0,0.00010954,2]
[335305483,1724093446454,-5840.0,0.00010954,2]
[335305484,1724093446463,-289.0,0.00010954,2]
[335305485,1724093446472,-155.518,0.00010954,2]
[335305486,1724093446482,-150.166,0.00010954,2]
[335305487,1724093446492,-814.5,0.00010959,2]
[335305488,1724093446503,-250.0,0.00010959,2]
[335305489,1724093446513,-150.0,0.00010959,2]
[335305490,1724093446522,-1500.0,0.00010959,2]
[335305491,1724093446531,-530.36,0.00010959,2]
[335305492,1724093446540,-500.0,0.0001096,2]
[335305493,1724093446550,-200.0,0.00010973,2]
[335305494,1724093446560,-569.07351517,0.00010989,2]
[335305495,1724093446569,-11745.52,0.00010993,2]
[335305496,1724093446579,-50380.4315648,0.00010998,2]
[335305497,1724093446589,-2956.3765598,0.00010998,2]
[335305498,1724093446600,-5637.4592861,0.00010998,2]
[335305499,1724093446609,-1570.9932378,0.00010999,2]
[335305500,1724093446621,-500.0,0.00010999,2]
[335305501,1724093446630,-413.25061816,0.00010999,2]
[335305502,1724093446639,-500.0,0.00010999,2]
[335305503,1724093446648,-500.0,0.00010999,2]
[335305504,1724093446658,-230.52,0.00010999,2]
[335305505,1724093446667,-500.0,0.00010999,2]
[335305506,1724093446675,-500.0,0.00010999,2]
[335305507,1724093446685,-500.0,0.00010999,2]
[335305508,1724093446694,-500.0,0.00010999,2]
[335305509,1724093446706,-500.0,0.00010999,2]
[335305510,1724093446717,-500.0,0.00010999,2]
[335305511,1724093446728,-577.85,0.00010999,2]
[335305512,1724093446738,-86737.24808515,0.00011,2]
[335305513,1724093446751,-914.18041574,0.00011,2]
[335305514,1724093446762,-341.13686896,0.00011,2]
[335305515,1724093446773,-581.02513369,0.00011,2]
[335305516,1724093446784,-1006.12377786,0.00011,2]
[335305517,1724093446795,-555.0,0.00011,2]
[335305518,1724093446807,-360.08234564,0.00011,2]
[335305520,1724093519423,500.0,9.168e-05,2]
[335305525,1724093576207,760.3907085,9.168e-05,2]
[335305528,1724093733987,-152.0,0.00011897,9]
[335305529,1724093748413,-152.0,0.00012886,14]
[335305530,1724093756233,-152.0,0.00012688,13]
[335305531,1724093767502,-152.0,0.0001249,12]
[335305532,1724093775091,-152.0,0.00012293,11]
[335305533,1724093784638,-152.0,0.00012095,10]
[335305534,1724093784665,-848.0,0.00012874,10]
[335305535,1724093792838,-152.0,0.00012874,10]
[335305536,1724093802920,-152.0,0.00011502,7]
[335305537,1724093802945,-88.0,0.000117,8]
[335305538,1724093806757,-64.0,0.000117,8]
[335305539,1724093806788,-176.0,0.00011874,7]
[335305540,1724093818662,617.15,8.219e-05,2]
[335305541,1724093823696,-270.0,0.00011874,7]
[335305542,1724094072967,794.0,9.902e-05,2]
[335305543,1724094094086,794.0,9.902e-05,2]
[335305544,1724094115729,794.0,9.902e-05,2]
[335305545,1724094136989,766.54074124,9.902e-05,2]
[335305548,1724094201192,2438.864123,9.88e-05,2]
[335305549,1724094218628,235.64,9.87e-05,2]
[335305550,1724094235710,250.0,9.828e-05,2]
[335305551,1724094300095,618.5,8.219e-05,2]
[335305552,1724094360611,150.0,9.888e-05,2]
[335305553,1724094365181,3952.58,9.797e-05,2]
[335305561,1724094475759,23900.0,9.81e-05,2]
[335305573,1724094540063,200.33,9.867e-05,2]
[335305576,1724094559562,493.79,9.898e-05,2]
[335305583,1724094631910,-1000.0,9.93e-05,2]
[335305584,1724094631920,-1047.3288252,9.943e-05,2]
[335305585,1724094631929,-333.05078341,9.943e-05,2]
[335305586,1724094631938,-966.69452116,9.953e-05,2]
[335305587,1724094631949,-488.29864495,9.953e-05,2]
[335305588,1724094631963,-543.00683389,9.953e-05,2]
[335305589,1724094631973,-150.82,0.00010025,2]
[335305590,1724094631982,-348.67316611,0.00010159,2]
[335305591,1724094632008,-151.31683389,0.00010159,2]
[335305592,1724094632018,-500.0,0.00010264,2]
[335305593,1724094632027,-500.0,0.00010264,2]
[335305594,1724094632036,-294.96410219,0.00010283,2]
[335305595,1724094632048,-482.99531256,0.00010283,2]
[335305596,1724094632059,-16.04058525,0.00010283,2]
[335305597,1724094632068,-361.8272363,0.00010466,2]
[335305598,1724094632080,-256.6727637,0.00010466,2]
[335305599,1724094632089,-183.89706622,0.00010599,2]
[335305600,1724094632098,-150.99,0.00010599,2]
[335305601,1724094632107,-150.0,0.00010698,2]
[335305602,1724094632116,-174.94185519,0.00010699,2]
[335305603,1724094632131,-967.91414481,0.00010699,2]
[335305604,1724094632141,-477.6679,0.00010699,2]
[335305605,1724094632150,-2064.9736,0.00010699,2]
[335305606,1724094632159,-8729.22835519,0.00010699,2]
[335305607,1724094632170,-16079.02632499,0.00010699,2]
[335305608,1724094632181,-15961.64896938,0.00010699,2]
[335305621,1724094637968,-8173.52989368,0.00010699,2]
[335305622,1724094638022,-265.69,0.00010699,2]
[335305623,1724094638033,-2937.11094433,0.00010699,2]
[335305624,1724094638073,-339.1733676,0.00010699,2]
[335305625,1724094638086,-1781.28071201,0.00010699,2]
[335305626,1724094638245,-5138.05560002,0.00010699,2]
[335305627,1724094638257,-322.82250005,0.00010699,2]
[335305628,1724094638269,-30761.54443275,0.00010699,2]
[335305629,1724094638279,-11632.2833,0.00010699,2]
[335305630,1724094638288,-309.03955769,0.00010797,2]
[335305631,1724094638301,-190.96044231,0.00010797,2]
[335305632,1724094638319,-500.0,0.00010798,2]
[335305634,1724094638328,-500.0,0.00010798,2]
[335305636,1724094638338,-500.0,0.00010798,2]
[335305638,1724094638348,-500.0,0.00010798,2]
[335305640,1724094638357,-500.0,0.00010798,2]
[335305642,1724094638367,-500.0,0.00010798,2]
[335305644,1724094638377,-500.0,0.00010798,2]
[335305646,1724094638386,-335.4322,0.00010799,2]
[335305648,1724094638395,-6398.51135934,0.000108,2]
[335305650,1724094638405,-794.0,0.00010824,2]
[335305651,1724094638414,-152.0,0.00010863,3]
[335305653,1724094638423,-261.822,0.00010864,2]
[335305655,1724094638433,-1371.07399835,0.00010864,2]
[335305657,1724094638445,-1710.00000005,0.00010864,2]
[335305659,1724094638456,-422.93455817,0.00010864,2]
[335305662,1724094638468,-280.12280149,0.00010864,2]